[Event "Championnat d'Europe Rapide"]
[Date "2024.12.08"]
[White "Navara, David"]
[Black "Papasimakopoulos, Alexandros"]
[WhiteElo "2665"]
[BlackElo "2379"]
[Round "8.15"]
[Result "1/2-1/2"]
[TimeControl "900+10"]

1. e4 {[%clk 00:15:19]} e6 {[%emt 00:00:01] [%clk 00:15:19]} 2. d4 {[%emt
00:00:02] [%clk 00:15:27]} d5 {[%emt 00:00:01] [%clk 00:15:28]} 3. Nd2 {[%emt
00:00:10] [%clk 00:15:27]} Nf6 {[%emt 00:00:01] [%clk 00:15:37]} 4. e5 {[%emt
00:00:02] [%clk 00:15:36]} Nfd7 {[%clk 00:15:46]} 5. c3 {[%emt 00:00:05] [%clk
00:15:41]} c5 {[%emt 00:00:01] [%clk 00:15:55]} 6. Bd3 {[%emt 00:00:03] [%clk
00:15:48]} b5 {[%clk 00:16:04]} 7. Bxb5 {[%emt 00:00:24] [%clk 00:15:34]} Qb6
{[%emt 00:00:01] [%clk 00:16:13]} 8. Qa4 {[%emt 00:00:08] [%clk 00:15:36]} a6
{[%clk 00:16:22]} 9. Be2 {[%emt 00:00:57] [%clk 00:14:50]} cxd4 {[%emt 00:00:01]
[%clk 00:16:30]} 10. cxd4 {[%emt 00:00:02] [%clk 00:14:58]} a5 {[%clk 00:16:40]}
11. Ndf3 {[%emt 00:01:14] [%clk 00:13:54]} Bb4+ {[%emt 00:01:43] [%clk
00:15:07]} 12. Kf1 {[%emt 00:00:01] [%clk 00:14:03]} O-O {[%emt 00:00:03] [%clk
00:15:14]} 13. g3 {[%emt 00:00:41] [%clk 00:13:32]} Ba6 {[%emt 00:00:14] [%clk
00:15:10]} 14. Kg2 {[%emt 00:00:15] [%clk 00:13:27]} Rc8 {[%emt 00:00:27] [%clk
00:14:52]} 15. Be3 {[%emt 00:00:45] [%clk 00:12:52]} Bf8 {[%emt 00:00:13] [%clk
00:14:49]} 16. Rb1 {[%emt 00:00:28] [%clk 00:12:34]} Nc6 {[%emt 00:00:02] [%clk
00:14:58]} 17. Bxa6 {[%emt 00:00:59] [%clk 00:11:45]} Qxa6 {[%emt 00:00:01]
[%clk 00:15:06]} 18. Nh3 {[%emt 00:01:17] [%clk 00:10:37]} Nb6 {[%emt 00:00:07]
[%clk 00:15:10]} 19. Qd1 {[%emt 00:00:02] [%clk 00:10:46]} a4 {[%emt 00:00:01]
[%clk 00:15:19]} 20. Nfg5 {[%emt 00:01:32] [%clk 00:09:23]} h6 {[%emt 00:00:26]
[%clk 00:15:03]} 21. Nxf7 {[%emt 00:04:51] [%clk 00:04:43]} Kxf7 {[%emt
00:00:01] [%clk 00:15:12]} 22. Qh5+ {[%emt 00:00:10] [%clk 00:04:43]} Kg8 {[%emt
00:00:01] [%clk 00:15:21]} 23. Qg6 {[%emt 00:00:10] [%clk 00:04:43]} Qb7 {[%emt
00:00:48] [%clk 00:14:43]} 24. Qxe6+ {[%emt 00:00:05] [%clk 00:04:48]} Qf7
{[%emt 00:00:01] [%clk 00:14:52]} 25. Qg4 {[%emt 00:00:04] [%clk 00:04:54]} h5
{[%emt 00:01:40] [%clk 00:13:21]} 26. Qe2 {[%emt 00:00:32] [%clk 00:04:32]} Ne7
{[%emt 00:00:49] [%clk 00:12:42]} 27. Nf4 {[%emt 00:01:03] [%clk 00:03:40]} g6
{[%emt 00:00:04] [%clk 00:12:48]} 28. Rhc1 {[%emt 00:02:01] [%clk 00:01:48]} Nc4
{[%emt 00:00:10] [%clk 00:12:49]} 29. b3 {[%emt 00:00:09] [%clk 00:01:49]} axb3
{[%emt 00:00:02] [%clk 00:12:57]} 30. axb3 {[%emt 00:00:01] [%clk 00:01:58]}
Nxe3+ {[%emt 00:00:11] [%clk 00:12:56]} 31. fxe3 {[%emt 00:00:01] [%clk
00:02:06]} Qf5 {[%emt 00:00:09] [%clk 00:12:58]} 32. Qd3 {[%emt 00:00:57] [%clk
00:01:18]} Ra2+ {[%emt 00:01:22] [%clk 00:11:46]} 33. Kg1 {[%emt 00:00:01] [%clk
00:01:27]} Rxc1+ {[%emt 00:00:32] [%clk 00:11:24]} 34. Rxc1 {[%emt 00:00:01]
[%clk 00:01:36]} Qxd3 {[%emt 00:00:02] [%clk 00:11:32]} 35. Nxd3 {[%emt
00:00:02] [%clk 00:01:45]} Bh6 {[%clk 00:11:41]} 36. Nf4 {[%emt 00:00:08] [%clk
00:01:47]} Bxf4 {[%emt 00:00:02] [%clk 00:11:50]} 37. exf4 {[%emt 00:00:46]
[%clk 00:01:11]} Rb2 {[%emt 00:01:03] [%clk 00:10:57]} 38. Rc7 {[%emt 00:00:20]
[%clk 00:01:01]} Nf5 {[%emt 00:00:33] [%clk 00:10:34]} 39. Rd7 {[%emt 00:00:44]
[%clk 00:00:27]} Rb1+ {[%emt 00:00:12] [%clk 00:10:32]} 40. Kf2 {[%emt 00:00:02]
[%clk 00:00:35]} Rb2+ {[%emt 00:00:01] [%clk 00:10:41]} 41. Kg1 {[%emt 00:00:01]
[%clk 00:00:43]} Nxd4 {[%emt 00:00:25] [%clk 00:10:26]} 42. Rxd5 {[%emt
00:00:02] [%clk 00:00:52]} Nf3+ {[%emt 00:00:02] [%clk 00:10:34]} 43. Kf1 {[%emt
00:00:01] [%clk 00:01:01]} Nxh2+ {[%emt 00:00:05] [%clk 00:10:39]} 44. Ke1
{[%emt 00:00:35] [%clk 00:00:36]} Rxb3 {[%emt 00:00:02] [%clk 00:10:47]} 45. f5
{[%emt 00:00:24] [%clk 00:00:21]} gxf5 {[%emt 00:00:48] [%clk 00:10:09]} 46. e6
{[%emt 00:00:02] [%clk 00:00:30]} Re3+ {[%emt 00:00:30] [%clk 00:09:48]} 47. Kd1
{[%emt 00:00:01] [%clk 00:00:39]} Rxe6 {[%emt 00:00:16] [%clk 00:09:43]} 48.
Rxf5 {[%emt 00:00:02] [%clk 00:00:47]} Rh6 {[%emt 00:00:01] [%clk 00:09:52]} 49.
Ke2 {[%emt 00:00:01] [%clk 00:00:56]} Ng4 {[%emt 00:00:04] [%clk 00:09:58]} 50.
Kf3 {[%emt 00:00:09] [%clk 00:00:57]} Rf6 {[%emt 00:00:13] [%clk 00:09:55]} 51.
Ke4 {[%emt 00:00:11] [%clk 00:00:56]} Rxf5 {[%emt 00:01:09] [%clk 00:08:56]} 52.
Kxf5 {[%emt 00:00:01] [%clk 00:01:04]} Kg7 {[%emt 00:00:08] [%clk 00:08:57]} 53.
Kg5 {[%emt 00:00:05] [%clk 00:01:10]} Nf6 {[%emt 00:00:02] [%clk 00:09:06]} 54.
Kf5 {[%emt 00:00:02] [%clk 00:01:18]} Kf7 {[%emt 00:00:42] [%clk 00:08:33]} 55.
Kg5 {[%emt 00:00:01] [%clk 00:01:27]} Ke7 {[%emt 00:00:25] [%clk 00:08:19]} 56.
Kg6 {[%emt 00:00:05] [%clk 00:01:31]} Ke6 {[%emt 00:00:06] [%clk 00:08:24]} 57.
Kg5 {[%emt 00:00:03] [%clk 00:01:37]} Kf7 {[%emt 00:01:08] [%clk 00:07:26]} 58.
Kh6 {[%emt 00:00:02] [%clk 00:01:45]} Ke6 {[%emt 00:00:28] [%clk 00:07:09]} 59.
Kg5 {[%emt 00:00:19] [%clk 00:01:35]} Ke5 {[%emt 00:00:12] [%clk 00:07:08]} 60.
Kg6 {[%emt 00:00:01] [%clk 00:01:43]} Ke6 {[%emt 00:00:32] [%clk 00:06:46]} 61.
Kg5 {[%emt 00:00:02] [%clk 00:01:51]} Ke7 {[%emt 00:00:06] [%clk 00:06:51]} 62.
Kg6 {[%emt 00:00:03] [%clk 00:01:57]} Ke6 {[%emt 00:00:06] [%clk 00:06:56]} 63.
Kg5 {[%emt 00:00:13] [%clk 00:01:54]} Ke5 {[%emt 00:00:14] [%clk 00:06:51]} 64.
Kg6 {[%emt 00:00:02] [%clk 00:02:02]} Nh7 {[%emt 00:00:33] [%clk 00:15:10]}
1/2-1/2

[Site "Europe Echecs"]

[Event "Championnat d'Europe Rapide"]
[Date "2024.12.08"]
[White "Costachi, Mihnea"]
[Black "Santos Latasa, Jaime"]
[WhiteElo "2464"]
[BlackElo "2628"]
[Round "8.16"]
[Result "1/2-1/2"]
[TimeControl "900+10"]

1. d4 {[%clk 00:15:19]} e6 {[%emt 00:00:03] [%clk 00:15:18]} 2. c4 {[%emt
00:00:02] [%clk 00:15:27]} d5 {[%emt 00:00:02] [%clk 00:15:25]} 3. Nc3 {[%emt
00:00:02] [%clk 00:15:35]} Nf6 {[%emt 00:00:04] [%clk 00:15:32]} 4. cxd5 {[%emt
00:00:02] [%clk 00:15:43]} exd5 {[%emt 00:00:01] [%clk 00:15:40]} 5. Bg5 {[%emt
00:00:03] [%clk 00:15:51]} Be7 {[%emt 00:00:09] [%clk 00:15:41]} 6. Qc2 {[%emt
00:00:10] [%clk 00:15:50]} h6 {[%emt 00:00:22] [%clk 00:15:29]} 7. Bh4 {[%emt
00:00:02] [%clk 00:15:59]} O-O {[%emt 00:00:07] [%clk 00:15:31]} 8. e3 {[%emt
00:00:02] [%clk 00:16:07]} c6 {[%emt 00:00:08] [%clk 00:15:34]} 9. Bd3 {[%emt
00:00:02] [%clk 00:16:13]} Re8 {[%emt 00:00:02] [%clk 00:15:43]} 10. Nf3 {[%emt
00:00:22] [%clk 00:16:01]} Ne4 {[%emt 00:01:02] [%clk 00:14:52]} 11. Bxe4 {[%emt
00:02:44] [%clk 00:13:27]} Bxh4 {[%emt 00:01:01] [%clk 00:14:00]} 12. Bh7+
{[%emt 00:00:02] [%clk 00:13:35]} Kf8 {[%emt 00:00:21] [%clk 00:13:49]} 13. g3
{[%emt 00:05:21] [%clk 00:08:25]} Be7 {[%emt 00:00:32] [%clk 00:13:26]} 14. Bf5
{[%emt 00:02:20] [%clk 00:06:15]} Nd7 {[%emt 00:00:36] [%clk 00:13:01]} 15.
O-O-O {[%emt 00:00:55] [%clk 00:05:29]} a5 {[%emt 00:00:30] [%clk 00:12:42]} 16.
g4 {[%emt 00:00:16] [%clk 00:05:22]} Bd6 {[%emt 00:01:30] [%clk 00:11:22]} 17.
g5 {[%emt 00:00:31] [%clk 00:05:01]} hxg5 {[%emt 00:00:57] [%clk 00:10:35]} 18.
Rdg1 {[%emt 00:02:53] [%clk 00:02:18]} Be7 {[%emt 00:00:27] [%clk 00:10:18]} 19.
h4 {[%emt 00:00:25] [%clk 00:02:03]} gxh4 {[%emt 00:00:49] [%clk 00:09:39]} 20.
Rg4 {[%emt 00:01:05] [%clk 00:01:08]} Bf6 {[%emt 00:00:50] [%clk 00:08:59]} 21.
Nxh4 {[%emt 00:00:23] [%clk 00:00:55]} Nb6 {[%emt 00:00:05] [%clk 00:09:05]} 22.
Nf3 {[%emt 00:00:45] [%clk 00:00:19]} Bxf5 {[%emt 00:00:53] [%clk 00:08:22]} 23.
Qxf5 {[%emt 00:00:02] [%clk 00:00:28]} Qd7 {[%emt 00:00:02] [%clk 00:08:29]} 24.
Qf4 {[%emt 00:00:19] [%clk 00:00:19]} Ke7 {[%emt 00:00:05] [%clk 00:08:35]} 25.
Ne5 {[%emt 00:00:08] [%clk 00:00:21]} Qe6 {[%emt 00:00:07] [%clk 00:08:37]} 26.
Qg3 {[%emt 00:00:14] [%clk 00:00:18]} Rh8 {[%emt 00:00:27] [%clk 00:08:20]} 27.
Re1 {[%emt 00:00:01] [%clk 00:00:27]} Rae8 {[%emt 00:00:22] [%clk 00:08:07]} 28.
f4 {[%emt 00:00:05] [%clk 00:00:32]} Kd8 {[%emt 00:00:50] [%clk 00:07:27]} 29.
Kb1 {[%emt 00:00:20] [%clk 00:00:22]} Kc8 {[%emt 00:01:00] [%clk 00:06:37]} 30.
e4 {[%emt 00:00:02] [%clk 00:00:30]} dxe4 {[%emt 00:00:22] [%clk 00:06:26]} 31.
Nxe4 {[%emt 00:00:01] [%clk 00:00:39]} Nd5 {[%emt 00:00:09] [%clk 00:06:27]} 32.
Nxf7 {[%emt 00:00:32] [%clk 00:00:17]} Nb4 {[%emt 00:00:55] [%clk 00:05:42]} 33.
Ned6+ {[%emt 00:00:05] [%clk 00:00:22]} Kd7 {[%emt 00:00:03] [%clk 00:05:49]}
34. Rxe6 {[%emt 00:00:16] [%clk 00:00:15]} Rh1+ {[%emt 00:00:02] [%clk
00:05:58]} 35. Qg1 {[%emt 00:00:01] [%clk 00:00:23]} Rxg1+ {[%emt 00:00:02]
[%clk 00:06:06]} 36. Rxg1 {[%emt 00:00:02] [%clk 00:00:32]} Rxe6 {[%emt
00:00:06] [%clk 00:06:10]} 37. Nxb7 {[%emt 00:00:17] [%clk 00:00:24]} Bxd4
{[%emt 00:00:11] [%clk 00:06:09]} 38. Rd1 {[%emt 00:00:17] [%clk 00:00:17]} Kc7
{[%emt 00:00:03] [%clk 00:06:17]} 39. a3 {[%emt 00:00:10] [%clk 00:00:17]} Nd5
{[%emt 00:00:56] [%clk 00:05:30]} 40. Nxa5 {[%emt 00:00:13] [%clk 00:00:15]} Bf6
{[%emt 00:00:16] [%clk 00:05:24]} 41. f5 {[%emt 00:00:12] [%clk 00:00:13]} Re2
{[%emt 00:00:07] [%clk 00:05:27]} 42. Nc4 {[%emt 00:00:01] [%clk 00:00:22]} Nb6
{[%emt 00:00:42] [%clk 00:04:55]} 43. Nfd6 {[%emt 00:00:13] [%clk 00:00:19]} Na4
{[%emt 00:00:06] [%clk 00:04:59]} 44. Rg1 {[%emt 00:00:15] [%clk 00:00:14]} Bxb2
{[%emt 00:00:24] [%clk 00:04:44]} 45. Ne8+ {[%emt 00:00:08] [%clk 00:00:16]} Kd7
{[%emt 00:00:52] [%clk 00:04:02]} 46. Nxb2 {[%emt 00:00:02] [%clk 00:00:24]}
Rxb2+ {[%emt 00:00:01] [%clk 00:04:10]} 47. Kc1 {[%emt 00:00:03] [%clk
00:00:32]} Kxe8 {[%emt 00:00:23] [%clk 00:03:57]} 48. Rg4 {[%emt 00:00:05] [%clk
00:00:36]} Rf2 {[%emt 00:00:05] [%clk 00:04:02]} 49. Rxa4 {[%emt 00:00:03] [%clk
00:00:44]} Rxf5 {[%clk 00:04:11]} 50. Ra7 {[%emt 00:00:05] [%clk 00:00:50]} g5
{[%emt 00:00:03] [%clk 00:04:17]} 51. Kd2 {[%emt 00:00:07] [%clk 00:00:53]} Rf7
{[%emt 00:00:09] [%clk 00:04:18]} 52. Ra8+ {[%emt 00:00:09] [%clk 00:00:54]} Ke7
{[%emt 00:00:11] [%clk 00:04:16]} 53. Rg8 {[%emt 00:00:03] [%clk 00:01:02]} Rf5
{[%emt 00:00:05] [%clk 00:04:22]} 54. Rg6 {[%emt 00:00:03] [%clk 00:01:09]} Kd7
{[%emt 00:00:02] [%clk 00:04:30]} 55. Kc3 {[%emt 00:00:11] [%clk 00:01:07]} Kc7
{[%emt 00:00:03] [%clk 00:04:38]} 56. Kb4 {[%emt 00:00:14] [%clk 00:01:03]} Kb6
{[%emt 00:00:02] [%clk 00:04:45]} 57. a4 {[%emt 00:00:01] [%clk 00:01:12]} Rd5
{[%emt 00:00:18] [%clk 00:04:37]} 58. Kc4 {[%emt 00:00:12] [%clk 00:01:10]} Ra5
{[%emt 00:00:05] [%clk 00:04:42]} 59. Kb4 {[%emt 00:00:05] [%clk 00:01:16]} Rf5
{[%emt 00:00:01] [%clk 00:04:51]} 60. Kc4 {[%emt 00:00:08] [%clk 00:01:18]} Rf4+
{[%emt 00:00:13] [%clk 00:04:48]} 61. Kb3 {[%emt 00:00:01] [%clk 00:01:27]} g4
{[%emt 00:00:27] [%clk 00:04:30]} 62. a5+ {[%emt 00:00:16] [%clk 00:01:21]} Kb5
{[%emt 00:00:09] [%clk 00:04:32]} 63. a6 {[%emt 00:00:02] [%clk 00:01:29]} Rb4+
{[%emt 00:00:33] [%clk 00:04:09]} 64. Kc3 {[%emt 00:00:10] [%clk 00:01:29]} Rc4+
{[%emt 00:00:15] [%clk 00:04:04]} 65. Kb3 {[%emt 00:00:23] [%clk 00:01:16]} Rb4+
{[%emt 00:00:01] [%clk 00:04:12]} 66. Kc3 {[%emt 00:00:01] [%clk 00:01:25]} Ra4
{[%emt 00:00:02] [%clk 00:04:19]} 67. a7 {[%emt 00:00:10] [%clk 00:01:26]} Ra3+
{[%emt 00:00:07] [%clk 00:04:22]} 68. Kb2 {[%emt 00:00:06] [%clk 00:01:30]} Rxa7
{[%emt 00:00:01] [%clk 00:04:31]} 69. Rxg4 {[%emt 00:00:01] [%clk 00:01:39]} c5
{[%emt 00:00:02] [%clk 00:04:39]} 70. Kb3 {[%emt 00:00:09] [%clk 00:01:39]} Rf7
{[%emt 00:00:02] [%clk 00:04:46]} 71. Rh4 {[%emt 00:00:06] [%clk 00:01:44]} Rf3+
{[%emt 00:00:03] [%clk 00:04:54]} 72. Kc2 {[%emt 00:00:02] [%clk 00:01:52]} Re3
{[%emt 00:00:11] [%clk 00:04:53]} 73. Rg4 {[%emt 00:00:01] [%clk 00:02:00]} Kc6
{[%emt 00:00:10] [%clk 00:04:53]} 74. Kd2 {[%emt 00:00:12] [%clk 00:01:58]} Re5
{[%emt 00:00:07] [%clk 00:04:56]} 75. Kd3 {[%emt 00:00:07] [%clk 00:02:01]} Kd5
{[%emt 00:00:02] [%clk 00:05:04]} 76. Rg8 {[%emt 00:00:14] [%clk 00:01:56]} c4+
{[%emt 00:00:05] [%clk 00:05:10]} 77. Kd2 {[%emt 00:00:12] [%clk 00:01:54]} Kc5
{[%emt 00:00:03] [%clk 00:05:16]} 78. Rc8+ {[%emt 00:00:07] [%clk 00:01:57]} Kb4
{[%emt 00:00:01] [%clk 00:05:24]} 79. Rb8+ {[%emt 00:00:01] [%clk 00:02:06]} Rb5
{[%emt 00:00:02] [%clk 00:05:33]} 80. Rxb5+ {[%emt 00:00:01] [%clk 00:02:14]}
Kxb5 {[%emt 00:00:02] [%clk 00:05:41]} 81. Kc3 {[%emt 00:00:01] [%clk 00:02:23]}
Kc5 {[%emt 00:00:01] [%clk 00:05:50]} 82. Kc2 {[%emt 00:00:01] [%clk 00:02:32]}
Kb4 {[%emt 00:00:01] [%clk 00:05:59]} 83. Kb2 {[%emt 00:00:01] [%clk 00:02:41]}
c3+ {[%emt 00:00:02] [%clk 00:06:08]} 84. Kc2 {[%emt 00:00:01] [%clk 00:02:49]}
Kc4 {[%emt 00:00:01] [%clk 00:06:17]} 85. Kc1 {[%emt 00:00:01] [%clk 00:02:58]}
Kb3 {[%emt 00:00:01] [%clk 00:06:26]} 86. Kb1 {[%emt 00:00:02] [%clk 00:03:07]}
c2+ {[%clk 00:06:35]} 87. Kc1 {[%emt 00:00:02] [%clk 00:03:16]} Kc3 {[%clk
00:06:32]} 1/2-1/2

[Site "Europe Echecs"]